Posting Date,Expenditure Area,Supplier Name,Amount,Expense Type,Reason for Expense
14-Jan-20,Corporate Management Team,Eb *creative Sharing S, 10.00 ,Specific Campaigns / Projects expenditure,attendance at creative industries event in Lowestoft
29-Jan-20,Corporate Management Team,Paypal, 5.83 ,Specific Campaigns / Projects expenditure,ISSBA January networking event
07-Oct-19,Culture & Environment Services,Ajax Domestic Spares, 132.92 ,Cleaning Supplies,Floor machine hire and sundries following breakdown
10-Feb-20,Culture & Environment Services,Amazon.Co.Uk, 3.98 ,Equipment / Furniture / Materials,Chain for tables in the ops room
18-Feb-20,Culture & Environment Services,Amazon.Co.Uk, 27.76 ,Stationery,Laminate sheets & Labels - Christchurch Hub
07-Feb-20,Culture & Environment Services,Amz*dsl Daily Supply L,-17.50 ,Equipment / Furniture / Materials,Return of wheels which didn't fit
28-Jan-20,Culture & Environment Services,Amznmktplace, 20.82 ,Equipment / Furniture / Materials,Replacement wheels for weight trolley
03-Feb-20,Culture & Environment Services,Amznmktplace, 6.12 ,Equipment / Furniture / Materials,Extra strong glue
07-Feb-20,Culture & Environment Services,Amznmktplace, 18.98 ,Equipment / Furniture / Materials,drain lifting keys
12-Feb-20,Culture & Environment Services,Amznmktplace, 9.98 ,Equipment / Furniture / Materials,2 x Replacement waterproof cases for on course handsets.
20-Feb-20,Culture & Environment Services,Amznmktplace, 3.42 ,Equipment / Furniture / Materials,merchandise pins 
03-Feb-20,Culture & Environment Services,Amznmktplace, 29.98 ,Materials and Supplies - Miscellaneous,Ultrasonic Washing Machine for protective Eye-goggles
21-Feb-20,Culture & Environment Services,Amznmktplace, 21.47 ,Materials and Supplies - Miscellaneous,labels for Holywells park Stables
07-Feb-20,Culture & Environment Services,Amznmktplace Amazon.Co.Uk, 12.45 ,Stationery,Laminating Wallets
17-Feb-20,Culture & Environment Services,Anglia Wildfowl, 187.50 ,Materials and Supplies - Miscellaneous,Female Hooded Merganser & Feed - Wildlife Team
08-Oct-19,Culture & Environment Services,Argos Ltd, 8.32 ,Materials and Supplies - Miscellaneous,Electrical Equip for staff room at Cemetery
10-Feb-20,Culture & Environment Services,Asda Stores 4278, 7.92 ,Miscellaneous Expenses,batteries for torches
05-Feb-20,Culture & Environment Services,B & M Retail, 1.38 ,Catering/Beverages,Milk for 50+
12-Feb-20,Culture & Environment Services,B & M Retail, 1.09 ,Catering/Beverages,Milk for 50+
10-Dec-19,Culture & Environment Services,B & Q 1315, 68.37 ,Equipment / Furniture / Materials,Equipment for Stonemason
10-Dec-19,Culture & Environment Services,B & Q 1315,-50.00 ,Equipment / Furniture / Materials,Refund for tools
14-Jan-20,Culture & Environment Services,B & Q 1315, 39.17 ,Materials and Supplies - Miscellaneous,Loppers for Cemetery
31-Jan-20,Culture & Environment Services,B & Q 1315, 29.10 ,Materials and Supplies - Miscellaneous,Fork & Trowel - CHRISTCHURCH HUB
21-Feb-20,Culture & Environment Services,B & Q 1315, 11.99 ,Materials and Supplies - Miscellaneous,Various items for a repair - BOURNE PARK
11-Feb-20,Culture & Environment Services,B & Q 1315, 61.67 ,Miscellaneous Stock  - Purchases,Land drainage coil - DUMBARTON REC - Landscape Team
13-Feb-20,Culture & Environment Services,B & Q 1315, 42.73 ,Miscellaneous Stock  - Purchases,Extra Rapid cement - INSTALL GATE @WATERTOWER PLAY AREA
19-Feb-20,Culture & Environment Services,B & Q 1315, 79.17 ,Miscellaneous Stock  - Purchases,Mastercrete -DUNBARTON REC - Landscape Team
25-Feb-20,Culture & Environment Services,B & Q 1315, 99.17 ,Miscellaneous Stock  - Purchases,Postcrete - DUMBARTON REC - Landscape Team
04-Feb-20,Culture & Environment Services,B&q Direct, 15.55 ,Equipment / Furniture / Materials,Bouncy castle straps and chains for outside.
06-Feb-20,Culture & Environment Services,Bolton Stores, 6.33 ,Miscellaneous Stock  - Purchases,Items for meetings
06-Feb-20,Culture & Environment Services,Booker Limited Ipswich, 17.28 ,Catering/Beverages,Items for Romeo Done Event 4.04.20
19-Feb-20,Culture & Environment Services,Booker Limited Ipswich, 147.01 ,Catering/Beverages,Drinks for Bar
28-Feb-20,Culture & Environment Services,Booker Limited Ipswich, 8.99 ,Materials and Supplies - Miscellaneous,Mini Jumbo Toilet roll dispenser - CHRISTCHURCH HUB
28-Feb-20,Culture & Environment Services,Booker Limited Ipswich, 8.99 ,Materials and Supplies - Miscellaneous,Mini Jumbo Toilet roll dispenser - CHRISTCHURCH HUB
17-Feb-20,Culture & Environment Services,Buildbase - Ipswich, 31.60 ,Miscellaneous Stock  - Purchases,Treated Carcassing - DUMBARTON REC - Landscape Team
13-Feb-20,Culture & Environment Services,Bunzl, 332.80 ,Cleaning Supplies,Toilet roll and cleaning products Old foundry road toilets
13-Feb-20,Culture & Environment Services,Bunzl, 79.47 ,Cleaning Supplies,Toilet Roll for Holywells Stable block public toilets
14-Feb-20,Culture & Environment Services,Bunzl, 78.12 ,Cleaning Supplies,Toilet roll for Holywells public and Staff toilets.
17-Feb-20,Culture & Environment Services,Bunzl, 56.60 ,Cleaning Supplies,Bleach for Masonry team
03-Feb-20,Culture & Environment Services,Christines Florist, 24.95 ,Cleaning Supplies,supplies for shopmobility
29-Jan-20,Culture & Environment Services,Clarke Fencing Ltd, 24.78 ,Materials and Supplies - Miscellaneous,coach screws
31-Jan-20,Culture & Environment Services,Clintons 1208, 2.92 ,Cleaning Supplies,supplies for shopmobility
04-Feb-20,Culture & Environment Services,Collier&catchpole, 8.90 ,Materials and Supplies - Miscellaneous,Bond Resin - BENCH INSTALLATION BOURNE PK
19-Feb-20,Culture & Environment Services,Collier&catchpole, 187.50 ,Materials and Supplies - Miscellaneous,Geotextile Multitrack - CHANTRY LEAF YARD
20-Feb-20,Culture & Environment Services,Collier&catchpole, 11.97 ,Materials and Supplies - Miscellaneous,Cement - GUSFORD SCHOOL - Chantry Hub
07-Feb-20,Culture & Environment Services,Collier&catchpole, 355.00 ,Miscellaneous Stock  - Purchases,Fast setting cement - DUMBARTON REC
03-Feb-20,Culture & Environment Services,Continental Sports Ltd, 168.00 ,Equipment / Furniture / Materials,Trampoline throw in mat
06-Feb-20,Culture & Environment Services,Cooleraid Ltd, 16.64 ,Equipment / Furniture / Materials,Replacement tap for water machine
21-Feb-20,Culture & Environment Services,Cpw Locksmiths And Securi, 100.00 ,Equipment / Furniture / Materials,Lock replacement - Woodchip Shed - CCP HUB
06-Feb-20,Culture & Environment Services,Cpw Locksmiths And Securi, 11.67 ,Materials and Supplies - Miscellaneous,key cutting for bin stores
27-Jan-20,Culture & Environment Services,D J Evans (Bury) Ltd, 9.80 ,Materials and Supplies - Miscellaneous,screws and line marking paint
06-Feb-20,Culture & Environment Services,Dvla Vehicle Tax, 162.50 ,Direct Transport Costs,Vehicle Tax
07-Feb-20,Culture & Environment Services,Dvla Vehicle Tax, 262.50 ,Direct Transport Costs,Vehicle Tax 
07-Feb-20,Culture & Environment Services,Dvla Vehicle Tax, 262.50 ,Direct Transport Costs,Vehicle Tax 
07-Feb-20,Culture & Environment Services,Dvla Vehicle Tax, 237.50 ,Direct Transport Costs,Vehicle tax 
07-Feb-20,Culture & Environment Services,Dvla Vehicle Tax, 262.50 ,Direct Transport Costs,Vehicle Tax
06-Nov-19,Culture & Environment Services,Elmers Hardware, 36.65 ,Materials and Supplies - Miscellaneous,Lockbox for keys to the park
04-Feb-20,Culture & Environment Services,Elmers Hardware, 7.48 ,Miscellaneous Stock  - Purchases,Tarpaulin - DUMBARTON REC
10-Feb-20,Culture & Environment Services,Eoe Coop, 5.25 ,Materials and Supplies - Miscellaneous,Battery for Cat Scan - CHANTRY HUB
31-Jan-20,Culture & Environment Services,Eoe Co-Op, 5.00 ,Equipment / Furniture / Materials,Batteries - PLAY AREA INSPECTOR
22-Jan-20,Culture & Environment Services,Essentialaids.Com Ltd, 42.98 ,Equipment / Furniture / Materials,Transfer board for evacuation
24-Feb-20,Culture & Environment Services,Fast Key Services Limi, 40.40 ,Materials and Supplies - Miscellaneous,Keys
07-Oct-19,Culture & Environment Services,Glasswells Ipswich, 749.99 ,Equipment / Furniture / Materials,Chair for Cemetery Consult room
07-Oct-19,Culture & Environment Services,Glasswells Ipswich, 749.99 ,Equipment / Furniture / Materials,Chair for Cemetery consult room
30-Jan-20,Culture & Environment Services,Greater Anglia T/o, 132.08 ,Use Of Public Transport,Train transport for training course
13-Jan-20,Culture & Environment Services,Hampshirefl, 124.84 ,Equipment / Furniture / Materials,St George and Union Jack flags
22-Nov-19,Culture & Environment Services,Harbro Supplies Ltd, 198.70 ,Equipment / Furniture / Materials,Anchor System and supplies for stone masons
07-Feb-20,Culture & Environment Services,Hg Gladwell & Sons, 54.12 ,Materials and Supplies - Miscellaneous,x5 sacks of Duck food - CHRISTCHURCH HUB
03-Oct-19,Culture & Environment Services,Horticultural Sppls Ltd, 125.53 ,Materials and Supplies - Miscellaneous,Lockbox for keys to the park
21-Nov-19,Culture & Environment Services,Horticultural Sppls Ltd, 24.92 ,Materials and Supplies - Miscellaneous,Tree Straps
18-Dec-19,Culture & Environment Services,Horticultural Sppls Ltd, 27.93 ,Materials and Supplies - Miscellaneous,Tree Straps
22-Nov-19,Culture & Environment Services,Indespension, 11.74 ,Materials and Supplies - Miscellaneous,Antiluce with nut
14-Feb-20,Culture & Environment Services,Indespension, 11.46 ,Materials and Supplies - Miscellaneous,5m Cable - CHANTRY HUB
05-Feb-20,Culture & Environment Services,Ispwich Ranso, 19.16 ,Clothing / Uniform & Laundry,New Staff Uniform - Hi Viz Hoodie
10-Dec-19,Culture & Environment Services,Ispwich Ranso, 45.82 ,Equipment / Furniture / Materials,Equipment for stonemasons
29-Jan-20,Culture & Environment Services,Ispwich Ranso, 289.99 ,Equipment / Furniture / Materials,Equipment for stonemasons
26-Feb-20,Culture & Environment Services,Ispwich Ranso, 16.65 ,Equipment / Furniture / Materials,Resin - ATHENA HALL - Play Area Inspector
10-Feb-20,Culture & Environment Services,Ispwich Ranso, 69.95 ,Materials and Supplies - Miscellaneous,Demarcation tape & Telescopic Loppers - Park Patrol
17-Feb-20,Culture & Environment Services,Ispwich Ranso, 29.96 ,Miscellaneous Stock  - Purchases,Level/Float/tape- DUMBARTON REC - Landscape Team
02-Dec-19,Culture & Environment Services,Iz *cars Smart, 5.75 ,Subsistence & Conference/Seminar / Event Expenses,Alarm call out - Taxi use
14-Feb-20,Culture & Environment Services,J P Lennard Ltd, 72.15 ,Equipment / Furniture / Materials,sauna thermometer
14-Feb-20,Culture & Environment Services,Jacksons - Peterborough, 48.79 ,Miscellaneous Stock  - Purchases,Ballast/Sand/Gravel - INSTALL GATE @WATER TOWER PLAY AREA
06-Feb-20,Culture & Environment Services,Jordan Leisure Systems, 40.42 ,Equipment / Furniture / Materials,Replacement wheels for weights trolley
03-Feb-20,Culture & Environment Services,Kiln Farm Nursery, 62.30 ,Materials and Supplies - Miscellaneous,Various garden Tools - CHRISTCHURCH HUB
05-Feb-20,Culture & Environment Services,Kings, 12.50 ,Materials and Supplies - Miscellaneous,new keys for staff use
01-Nov-19,Culture & Environment Services,Launderclean, 8.75 ,Miscellaneous Expenses,Dry clean of Bearers suit.
03-Oct-19,Culture & Environment Services,Lumberjacks, 194.25 ,Materials and Supplies - Miscellaneous,Materials for Cemetery
21-Nov-19,Culture & Environment Services,Lumberjacks, 304.20 ,Materials and Supplies - Miscellaneous,Wooden stakes for Cemetery
03-Feb-20,Culture & Environment Services,Lumberjacks, 74.67 ,Materials and Supplies - Miscellaneous,Oak Sleepers - GUSFORD SCHOOL - Chantry Hub
06-Feb-20,Culture & Environment Services,Lumberjacks, 225.00 ,Materials and Supplies - Miscellaneous,Reclaim sleepers - CHRISTCHURCH HUB
04-Feb-20,Culture & Environment Services,Lumberjacks, 46.50 ,Miscellaneous Stock  - Purchases,Material for fencing repair - ORWELL COUNTRY PARK
26-Feb-20,Culture & Environment Services,Lumberjacks, 159.90 ,Miscellaneous Stock  - Purchases,Material for fence repair - HAVERGATE ROAD
27-Feb-20,Culture & Environment Services,Lumberjacks, 209.00 ,Miscellaneous Stock  - Purchases,Material for fence repair - SHERRINGHAM ROAD
17-Feb-20,Culture & Environment Services,Makro Self Service Ipswic, 14.98 ,Miscellaneous Expenses,sugar
21-Nov-19,Culture & Environment Services,Mister Wing, 206.75 ,Catering/Beverages,Production catering re charge to show
06-Feb-20,Culture & Environment Services,Morplan Ltd, 31.47 ,Materials and Supplies - Miscellaneous,Brown paper bags for duck food - CHRISTCHURCH HUB
18-Dec-19,Culture & Environment Services,Nbbmatting.Co.Uk, 188.50 ,Equipment / Furniture / Materials,Cigarette bins
25-Feb-20,Culture & Environment Services,Nhbs Ltd, 8.33 ,Materials and Supplies - Miscellaneous,digital thermometer for surveying
22-Nov-19,Culture & Environment Services,Odlings Mcr Ltd, 42.45 ,Equipment / Furniture / Materials,Sand Blast Adhesive
05-Feb-20,Culture & Environment Services,Paperchase, 2.92 ,Miscellaneous Expenses,REDACTED INFORMATION
12-Feb-20,Culture & Environment Services,Paperwristband.Co.Uk, 26.00 ,Materials and Supplies - Miscellaneous,Wrist bands for VIP events
30-Jan-20,Culture & Environment Services,Paypal, 50.00 ,Training Expenses,training 
13-Feb-20,Culture & Environment Services,Paypal, 60.00 ,Training Expenses,4 places on nature conference
07-Oct-19,Culture & Environment Services,Post Office Counter, 10.95 ,Postage Costs,Postage Costs
21-Oct-19,Culture & Environment Services,Post Office Counter, 3.33 ,Postage Costs,Postage Costs
14-Feb-20,Culture & Environment Services,Poundland Ltd 1344, 3.33 ,Materials and Supplies - Miscellaneous,Jars for sugars etc for Bar
06-Feb-20,Culture & Environment Services,Premier Farnell, 8.86 ,Equipment / Furniture / Materials,Power Lead.
10-Dec-19,Culture & Environment Services,Ryman, 4.99 ,Stationery,Stationery
12-Feb-20,Culture & Environment Services,Ryman, 7.89 ,Stationery,Sticky fixes for signs
24-Feb-20,Culture & Environment Services,Safe.Co.Uk, 19.65 ,Materials and Supplies - Miscellaneous,combination padlock
04-Feb-20,Culture & Environment Services,Sainsburys S/mkt, 6.00 ,Materials and Supplies - Miscellaneous,Sundries for Waste Services
10-Feb-20,Culture & Environment Services,Sainsburys S/mkt, 2.29 ,Materials and Supplies - Miscellaneous,Sundries for Waste Services
24-Feb-20,Culture & Environment Services,Sainsburys S/mkt, 19.42 ,Materials and Supplies - Miscellaneous,Supplies for cricket league finals
03-Feb-20,Culture & Environment Services,Sainsburys S/mkts, 5.60 ,Catering/Beverages,Lemons for Bar
14-Feb-20,Culture & Environment Services,Sainsburys S/mkts, 5.00 ,Catering/Beverages,Lemons for Bars
14-Feb-20,Culture & Environment Services,Sainsburys S/mkts, 6.25 ,Catering/Beverages,Lemons for Bars
06-Dec-19,Culture & Environment Services,Sainsburys S/mkts, 12.50 ,Equipment / Furniture / Materials,Supplies for Cemetery Office
13-Feb-20,Culture & Environment Services,Sainsburys S/mkts, 11.12 ,Materials and Supplies - Miscellaneous,Sundries for Waste Services
24-Feb-20,Culture & Environment Services,Sam Turner And Sons Ltd, 67.50 ,Materials and Supplies - Miscellaneous,20 litres bio chain oil
10-Feb-20,Culture & Environment Services,Screwfix Dir. Ltd, 5.24 ,Materials and Supplies - Miscellaneous,Silicone Glazing for noticeboard - CHRISTCHURCH HUB
11-Feb-20,Culture & Environment Services,Screwfix Dir. Ltd, 13.13 ,Materials and Supplies - Miscellaneous,Ring on plate - CHRISTCHURCH HUB
19-Feb-20,Culture & Environment Services,Screwfix Dir. Ltd, 71.46 ,Materials and Supplies - Miscellaneous,Material fro Sandpit - GUSFORD SCHOOL - Chantry Hub
21-Feb-20,Culture & Environment Services,Screwfix Dir. Ltd,-23.16 ,Materials and Supplies - Miscellaneous,REFUND - GUSFORD SCHOOL
24-Feb-20,Culture & Environment Services,Screwfix Dir. Ltd, 35.10 ,Materials and Supplies - Miscellaneous,Sanding Discs - GUSFORD SCHOOL - Chantry Hub
26-Feb-20,Culture & Environment Services,Screwfix Dir. Ltd,-8.97 ,Materials and Supplies - Miscellaneous,Refund - CHANTRY HUB
07-Feb-20,Culture & Environment Services,Screwfix Dir. Ltd, 303.57 ,Miscellaneous Stock  - Purchases,Tools for Dumbarton Road play area
22-Jan-20,Culture & Environment Services,Screwfix Direct, 41.29 ,Equipment / Furniture / Materials,Tools and cable ties
07-Oct-19,Culture & Environment Services,Screwfix Direct Lt, 14.38 ,Materials and Supplies - Miscellaneous,Tools for Cemetery
24-Feb-20,Culture & Environment Services,Shell Ranelagh 390, 15.51 ,Parks Vehicle Costs,Diesel for Ezgo - CHRISTCHURCH HUB
28-Jan-20,Culture & Environment Services,Shop.Swimming.Org, 189.80 ,Equipment / Furniture / Materials,badges
30-Jan-20,Culture & Environment Services,Shrubland Woodland Produc, 71.13 ,Materials and Supplies - Miscellaneous,Fishing swims - CHANTRY HUB
07-Feb-20,Culture & Environment Services,Signs For You Ltd, 240.84 ,Miscellaneous Stock  - Purchases,Various signage for machinery - Landscape Team
18-Feb-20,Culture & Environment Services,Sp * Jb Equipment," 2,070.00 ",Materials and Supplies - Miscellaneous,3x Excavator buckets for various machinery - Christchurch Hu
20-Dec-19,Culture & Environment Services,Suffolk County Council, 18.33 ,Equipment / Furniture / Materials,Equipment for stonemasons
18-Nov-19,Culture & Environment Services,Suffolk County Council, 9.17 ,Payables <12 mths (detail),Death Cert x 2
12-Dec-19,Culture & Environment Services,Suffolk County Council, 9.17 ,Payables <12 mths (detail),Death Certificate for public health
12-Feb-20,Culture & Environment Services,Suffolk County Council, 18.33 ,Payables <12 mths (detail),Death Certificates for public healths
27-Feb-20,Culture & Environment Services,Suffolk Fastener (Ipsw, 12.92 ,Equipment / Furniture / Materials,Studlock - ATHENA HALL - Play Area Inspector
02-Dec-19,Culture & Environment Services,Sumup *bale Taxi, 5.67 ,Subsistence & Conference/Seminar / Event Expenses,Alarm call out - Taxi use
19-Feb-20,Culture & Environment Services,Tesco Store 2748, 42.11 ,Materials and Supplies - Miscellaneous,Replacement cups/glasses/jugs for Ed Rm events - CCP HUB
21-Jan-20,Culture & Environment Services,Tesco Store 2748, 6.20 ,Miscellaneous Expenses,volunteer refreshments
27-Jan-20,Culture & Environment Services,Tesco Store 2748, 15.70 ,Miscellaneous Expenses,volunteer refreshments for event
06-Feb-20,Culture & Environment Services,Tesco Store 2748, 13.47 ,Miscellaneous Expenses,volunteer refreshments (training event)
17-Feb-20,Culture & Environment Services,Tesco Store 2748, 20.95 ,Miscellaneous Expenses,refreshments for volunteer event
05-Feb-20,Culture & Environment Services,Tesco Store 3240, 3.56 ,Catering/Beverages,Food for Invest East Conference 51148
05-Feb-20,Culture & Environment Services,Tesco Store 3240, 122.97 ,Catering/Beverages,Food for Invest East Conference 51148
06-Feb-20,Culture & Environment Services,Tesco Store 3240, 6.05 ,Catering/Beverages,Food Invest East Conference 51148
20-Feb-20,Culture & Environment Services,Tesco Store 3240, 77.06 ,Catering/Beverages,Food for Conference 51213
21-Feb-20,Culture & Environment Services,The Post Office, 0.69 ,Postage Costs,Postage - lost property
06-Feb-20,Culture & Environment Services,The Range, 30.80 ,Equipment / Furniture / Materials,Equipment for stonemasons
10-Feb-20,Culture & Environment Services,Timpson, 11.67 ,Equipment / Furniture / Materials,Keys 
20-Feb-20,Culture & Environment Services,Timpson, 11.67 ,Equipment / Furniture / Materials,Keys for toilet roll holders for FOH Supervisor
03-Feb-20,Culture & Environment Services,Timpson, 31.04 ,Materials and Supplies - Miscellaneous,Keys
04-Feb-20,Culture & Environment Services,Timpson Ltd, 26.67 ,Equipment / Furniture / Materials,Keys for Corn Exchange
08-Oct-19,Culture & Environment Services,Tolleshunt Turf, 622.80 ,Materials and Supplies - Miscellaneous,Turfing for Cemetery
27-Feb-20,Culture & Environment Services,Toolstation Ltd, 15.23 ,Equipment / Furniture / Materials,Various material - ATHENA HALL - Play Area Inspector
28-Feb-20,Culture & Environment Services,Toolstation Ltd, 4.57 ,Equipment / Furniture / Materials,Heavy duty hasp & staples - WHITEHOUSE TOILETS
28-Feb-20,Culture & Environment Services,Toolstation Ltd, 6.13 ,Equipment / Furniture / Materials,"Heavy duty hasps, Staples & bolts - WHITEHOUSE TOILETS"
30-Jan-20,Culture & Environment Services,Toolstation Ltd, 19.87 ,Materials and Supplies - Miscellaneous,Angle Grinder - GUSFORD SCHOOL - Chantry Hub
21-Feb-20,Culture & Environment Services,Toolstation Ltd, 54.42 ,Materials and Supplies - Miscellaneous,Various material for Play are repairs - GUSFORD SCHOOL
24-Feb-20,Culture & Environment Services,Toolstation Ltd,-33.21 ,Materials and Supplies - Miscellaneous,Refund - GUSFORD SCHOOL - Chantry Hub
26-Feb-20,Culture & Environment Services,Toolstation Ltd, 23.93 ,Miscellaneous Stock  - Purchases,Material for fence repair - HAVERGATE ROAD
27-Feb-20,Culture & Environment Services,Town & Tea, 66.78 ,Catering/Beverages,Meeting Sundries
03-Feb-20,Culture & Environment Services,Tvlicensing.Co.Uk, 128.75 ,Licences & Other Fees,TV License
19-Feb-20,Culture & Environment Services,Tvlicensing.Co.Uk, 154.50 ,Licences & Other Fees,Corn Exchange TV licence
10-Oct-19,Culture & Environment Services,Victoria Nurseries," 1,041.67 ",Materials and Supplies - Miscellaneous,Plants for Cemetery
20-Nov-19,Culture & Environment Services,Victoria Nurseries, 133.33 ,Materials and Supplies - Miscellaneous,Compost for Cemetery
21-Jan-20,Culture & Environment Services,Victoria Nurseries, 42.50 ,Materials and Supplies - Miscellaneous,Plants for Cemetery
04-Oct-19,Culture & Environment Services,Victoria Nurseries, 283.33 ,Miscellaneous Stock  - Purchases,Plants for Millennium Cemetery
21-Feb-20,Culture & Environment Services,Viking Uk, 74.50 ,Cleaning Supplies,Poolside Shoe Covers
06-Dec-19,Culture & Environment Services,Waitrose 632, 5.00 ,Equipment / Furniture / Materials,Tissues for Cemetery office
18-Feb-20,Culture & Environment Services,Waitrose Ltd, 1.15 ,Catering/Beverages,milk for Cornhill Site meeting
30-Jan-20,Culture & Environment Services,Warble Entertainment, 187.50 ,Equipment / Furniture / Materials,"Entertainment deposit 4th, 5th, 12th Dec -Christmas parties"
18-Feb-20,Culture & Environment Services,Warble Entertainment, 62.50 ,Equipment / Furniture / Materials,Entertainment deposit for 19th December Christmas party
19-Feb-20,Culture & Environment Services,Watercoolersdirect.Com, 49.95 ,Equipment / Furniture / Materials,bottle filler for profiles water fountain
27-Sep-19,Culture & Environment Services,Wayfair #2753590098, 58.32 ,Goods for Resale - Bereavement,Table for Cemetery Reception
25-Oct-19,Culture & Environment Services,Wickes Ipswich, 122.50 ,Equipment / Furniture / Materials,Paint for Cemetery Gates
25-Oct-19,Culture & Environment Services,Wickes Ipswich,-18.96 ,Equipment / Furniture / Materials,Refund for unused paint at Cemetery
23-Jan-20,Culture & Environment Services,Wickes Ipswich, 21.00 ,Equipment / Furniture / Materials,Materials for stonemasons
03-Oct-19,Culture & Environment Services,Wickes Ipswich, 50.83 ,Materials and Supplies - Miscellaneous,Tools for Cemetery
10-Oct-19,Culture & Environment Services,Wickes Ipswich, 110.42 ,Materials and Supplies - Miscellaneous,Grave Boards
07-Nov-19,Culture & Environment Services,Wickes Ipswich, 153.76 ,Materials and Supplies - Miscellaneous,Grave Boards
09-Dec-19,Culture & Environment Services,Wickes Ipswich, 4.17 ,Materials and Supplies - Miscellaneous,Tape Measure
13-Dec-19,Culture & Environment Services,Wickes Ipswich, 177.30 ,Materials and Supplies - Miscellaneous,Grave Boards
04-Feb-20,Culture & Environment Services,Wickes Ipswich, 19.17 ,Materials and Supplies - Miscellaneous,Tools for Cemetery
10-Feb-20,Culture & Environment Services,Wickes Ipswich, 15.83 ,Materials and Supplies - Miscellaneous,Postcrete - GIPPESYWK PARK DOG BINS
23-Dec-19,Culture & Environment Services,Wickes Ipswich, 39.58 ,Miscellaneous Stock  - Purchases,Concrete for Stone Masons
03-Feb-20,Culture & Environment Services,Wilko Retail Limited, 11.25 ,Equipment / Furniture / Materials,Extension lead for the cleaners
03-Feb-20,Culture & Environment Services,Wilko Retail Limited, 3.12 ,Equipment / Furniture / Materials,Hacksaw for cutting down optic brackets
10-Feb-20,Culture & Environment Services,Wilko Retail Limited, 0.33 ,Equipment / Furniture / Materials,Hooks for tables in ops room
19-Feb-20,Culture & Environment Services,Wilko Retail Limited, 0.83 ,Equipment / Furniture / Materials,3 amp fuses for backstage
07-Feb-20,Culture & Environment Services,Wilko Retail Limited, 6.67 ,Materials and Supplies - Miscellaneous,Toilet Brushes for various toilet in Christchurch Park
06-Feb-20,Culture & Environment Services,Www.192.Com, 49.95 ,Miscellaneous Stock  - Purchases,Credits for Public Health Searches
05-Feb-20,Culture & Environment Services,Www.Banneruk.Com, 76.56 ,Stationery,Stationery
07-Feb-20,Culture & Environment Services,Www.Banneruk.Com, 34.77 ,Stationery,Various stationary items
17-Feb-20,Culture & Environment Services,Www.Banneruk.Com, 59.48 ,Stationery,Hard back book for CCTV Controllers
17-Feb-20,Culture & Environment Services,Www.Banneruk.Com, 28.67 ,Stationery,Stationery for Waste Services
03-Sep-19,Culture & Environment Services,Www.Barcham.Co.Uk, 192.50 ,Materials and Supplies - Miscellaneous,Tree for Cemetery
06-Feb-20,Culture & Environment Services,Www.British-Gymnastics, 84.00 ,Goods for Resale - Equipment,Gymnastics badges and certificates
11-Feb-20,Culture & Environment Services,Www.British-Gymnastics, 197.68 ,Goods for Resale - Equipment,Trampoline Badges & Certificates
20-Feb-20,Culture & Environment Services,Www.Certasenergy.C, 239.14 ,Parks Vehicle Costs,Red Diesel for Christchurch Hub
17-Feb-20,Culture & Environment Services,Www.Fta.Co.Uk, 27.95 ,Direct Transport Costs,height restriction stickers
19-Feb-20,Culture & Environment Services,Www.Keysignsuk.Co.Uk, 206.27 ,Materials and Supplies - Miscellaneous,Signage and metal frames - BOURNE PARK
19-Feb-20,Culture & Environment Services,Www.Kustom-Covers.Co Rt, 347.25 ,Parks Vehicle Costs,tarpauling covers for IBC vehicles - Parks & Cems
27-Jan-20,Culture & Environment Services,Www.Lifesaversdirect, 61.80 ,Training/Courses Running Costs,rlss training
27-Jan-20,Culture & Environment Services,Www.Lifesaversdirect, 214.37 ,Training/Courses Running Costs,training aids
31-Jan-20,Culture & Environment Services,Www.Lifesaversdirect, 250.00 ,Training/Courses Running Costs,NPLQ (G9) Renewal Standard Candidate Pack x 12
04-Feb-20,Culture & Environment Services,Www.Lifesaversdirect, 34.95 ,Training/Courses Running Costs,Emergency Response (ER) Pool Integrated Candidate Pack 4th
12-Feb-20,Culture & Environment Services,Www.Smartcompliance.Desc, 140.00 ,Direct Transport Costs,Tacho key
05-Feb-20,Culture & Environment Services,Www.Sta.Co.Uk, 25.00 ,Training Expenses,online training course
10-Feb-20,Culture & Environment Services,Www.Thesoccerstore.Co.Uk, 27.46 ,Equipment / Furniture / Materials,Clips for goal nets on 3G pitch - to reattach nets
24-Jan-20,Culture & Environment Services,Zoggs International Ltd, 17.15 ,Goods for Resale - Equipment,shuttles
11-Dec-19,Development,A C Leigh, 15.50 ,Equipment / Furniture / Materials,key
20-Jan-20,Development,A C Leigh, 110.00 ,Premises Costs - Miscellaneous,key cards
22-Jan-20,Development,Amznmktplace, 4.15 ,Equipment / Furniture / Materials,short hdmi cable
23-Jan-20,Development,Amznmktplace, 12.49 ,Equipment / Furniture / Materials,long hdmi cable
19-Feb-20,Development,Amznmktplace, 20.82 ,Equipment / Furniture / Materials,reuseable cups
25-Feb-20,Development,Amznmktplace, 41.65 ,Equipment / Furniture / Materials,rigid poly carbon cups for Grafton
05-Feb-20,Development,Av Unit, 35.00 ,Premises Costs - Miscellaneous,av repair
07-Feb-20,Development,Babergh District C, 116.00 ,Capital Expenditure,"Sproughton site, discharge of planning conditions"
20-Feb-20,Development,Battery Station, 19.49 ,Premises Costs - Miscellaneous,batterys
25-Feb-20,Development,Digital Id, 164.92 ,Materials and Supplies - Miscellaneous,snapped ribbons
23-Jan-20,Development,Geodesys, 337.00 ,Capital Expenditure,REDACTED INFORMATION
20-Feb-20,Development,Geodesys, 269.50 ,Capital Expenditure,REDACTED INFORMATION
13-Feb-20,Development,Greater Anglia Trains, 76.70 ,Use Of Public Transport,Train -  Ipswich - London 18/3/20
23-Jan-20,Development,Nochex.*utilitysearch, 100.17 ,Capital Expenditure,REDACTED INFORMATION
17-Feb-20,Development,Sainsburys S/mkt, 2.92 ,Cleaning Supplies,rinse aid
14-Feb-20,Development,"Www,eastsuffolk.Gov.Uk", 80.00 ,Non Contracted_Professional Services,Partnership Inspections 
24-Feb-20,Development,"Www,eastsuffolk.Gov.Uk", 96.00 ,Non Contracted_Professional Services,Partnership Inspections 
30-Jan-20,Development,Www.Planningportal.Co., 259.00 ,Capital Expenditure,Planning permission for additional works - Cornhill
03-Feb-20,Finance & Revenues,Amznmktplace, 74.82 ,Computer Equipment - Purchase,Ergonomic mouse and wrist support
03-Feb-20,Finance & Revenues,Amznmktplace, 119.99 ,Computer Equipment - Purchase,Footrest 
13-Feb-20,Finance & Revenues,Amznmktplace, 20.21 ,Equipment / Furniture / Materials,Mouse mats and wrist rests 
26-Feb-20,Finance & Revenues,Amznmktplace, 18.31 ,Telecommunication Costs - Business Phones,Analogue telephone for Cemeteries Office
18-Feb-20,Finance & Revenues,Amznmktplace Amazon.Co.Uk, 4.15 ,Stationery,Mouse Mat
27-Jan-20,Finance & Revenues,Cbt Nuggets Llc, 46.53 ,Training Expenses,IT Training
03-Feb-20,Finance & Revenues,Cipfa," 3,700.00 ",Publications - Purchase,CIPFA Publications Subscription 1/4/20-31/3/21
17-Jan-20,Finance & Revenues,Easily Ltd, 66.68 ,Web Service costs,Domain renewals
06-Feb-20,Finance & Revenues,Easily Ltd,-66.68 ,Web Service costs,Domain renewals refund
21-Jan-20,Finance & Revenues,Greater Anglia Trains, 103.33 ,Training Expenses,Examination fees
19-Feb-20,Finance & Revenues,Hp Inc UK Limited," 1,206.00 ",Capital Expenditure,Laptops
13-Feb-20,Finance & Revenues,Hp Inc UK Limited, 33.60 ,Computer Software - Purchase,2 X HP AC Adapters
20-Jan-20,Finance & Revenues,Kaplan Financial Ltd, 296.67 ,Training Expenses,Training fees
29-Jan-20,Finance & Revenues,Ncs*cima Vue Exam, 110.00 ,Training Expenses,Examination fees
26-Feb-20,Finance & Revenues,Paypal, 51.96 ,Computer Software - Purchase,Domain renewals
12-Feb-20,Finance & Revenues,Paypal, 19.98 ,Miscellaneous Expenses,Domain renewals
12-Feb-20,Finance & Revenues,Pp*9277code, 1.00 ,Web Service costs,Card verification
18-Feb-20,Finance & Revenues,Pp*9277code,-1.00 ,Web Service costs,Card verification refund
05-Feb-20,Finance & Revenues,"Probrand Ltd.,", 93.60 ,Computer Software - Purchase,Kofax PDF
13-Feb-20,Finance & Revenues,"Probrand Ltd.,", 402.05 ,Equipment / Furniture / Materials,6 x Agile Docks
05-Feb-20,Finance & Revenues,"Probrand Ltd.,", 93.60 ,Stationery,Kofax PDF
17-Feb-20,Finance & Revenues,Redactive, 695.00 ,Training Expenses,CIPFA Conference
17-Feb-20,Finance & Revenues,Redactive, 595.00 ,Training Expenses,CIPFA Conference 
07-Feb-20,Finance & Revenues,Service Fees - Fraedom Pty Ltd, 383.15 ,Computer Software - Maintenance,Fraedom Card usage Fees 1/1/20 to 31/1/20
13-Feb-20,Finance & Revenues,Southend County, 517.00 ,Legal Services & Fees,Council Tax and NDR Summons
26-Feb-20,Finance & Revenues,Southend County, 395.00 ,Legal Services & Fees,CTAX and NDR Summons
12-Feb-20,Finance & Revenues,Trainline, 78.51 ,Use Of Public Transport,Ipswich to Basildon Single Ticket
19-Feb-20,Finance & Revenues,Trainline, 22.96 ,Use Of Public Transport,Rail Tickets 
20-Feb-20,Finance & Revenues,Trainline,-14.00 ,Use Of Public Transport,Rail Tickets - Refund (minus 10 admin fee).
14-Feb-20,Finance & Revenues,Www.Aat-Org.Uk, 157.00 ,Employee Expenses,AAT Subscription
27-Feb-20,Finance & Revenues,Www.Aat-Org.Uk, 99.00 ,Employee Expenses,AAT Membership
13-Jan-20,Finance & Revenues,Www.Cimaglobal.Com, 64.17 ,Training Expenses,Training fees
13-Jan-20,Finance & Revenues,Www.Cimaglobal.Com, 100.00 ,Training Expenses,Training fees
13-Feb-20,Housing & Community Services,Amazon Prime, 7.99 ,Equipment / Furniture / Materials,Amazon Prime
13-Jan-20,Housing & Community Services,Amazon.Co.Uk, 37.47 ,Miscellaneous Expenses,scheme items
13-Jan-20,Housing & Community Services,Amazon.Co.Uk, 53.37 ,Miscellaneous Expenses,scheme items
06-Feb-20,Housing & Community Services,Amznmktplace, 47.90 ,Computer Equipment - Purchase,Tablet Holder/Extension Leads
25-Feb-20,Housing & Community Services,Amznmktplace, 1.33 ,Equipment / Furniture / Materials,Permit holders for vans
26-Feb-20,Housing & Community Services,Amznmktplace, 4.12 ,Equipment / Furniture / Materials,Charger cable - phone
14-Feb-20,Housing & Community Services,Amznmktplace, 112.42 ,Miscellaneous Expenses,scheme items hand gels
17-Feb-20,Housing & Community Services,Amznmktplace, 14.16 ,Miscellaneous Expenses,blind Morecambe bathroom
06-Feb-20,Housing & Community Services,Amznmktplace, 12.00 ,Telecommunication Costs - Mobiles,Tablet Holder/Extension Leads
13-Feb-20,Housing & Community Services,Amznmktplace, 78.90 ,Telecommunication Costs - Mobiles,Screen Protectors
21-Feb-20,Housing & Community Services,Argos Ltd, 372.44 ,Equipment / Furniture / Materials,"2 X microwave, cutlery, cups and kettle"
21-Feb-20,Housing & Community Services,Argos Ltd,-5.00 ,Equipment / Furniture / Materials,refund on broken mugs
04-Feb-20,Housing & Community Services,Booker Limited Ipswich, 7.60 ,Materials and Supplies - Miscellaneous,Milk
10-Feb-20,Housing & Community Services,Booker Limited Ipswich, 21.59 ,Materials and Supplies - Miscellaneous,Tea bags/milk
14-Feb-20,Housing & Community Services,Booker Limited Ipswich, 26.58 ,Materials and Supplies - Miscellaneous,Coffee/Sugar/Milk
20-Feb-20,Housing & Community Services,Booker Limited Ipswich, 7.60 ,Materials and Supplies - Miscellaneous,Milk
18-Feb-20,Housing & Community Services,Bunzl, 161.80 ,Cleaning Supplies,cleaning supplies
30-Jan-20,Housing & Community Services,Chartered Institute Of En, 99.00 ,Training Expenses,CIEH H&S conference
10-Feb-20,Housing & Community Services,Chartered Institute Of En, 145.00 ,Training Expenses,CIEH food safety conference
31-Jan-20,Housing & Community Services,Copdock Kennels, 691.20 ,Services for Clients,RW DOgs
16-Jan-20,Housing & Community Services,Cpw Locksmiths And Securi, 260.00 ,HRA Special Repairs & Maintenance,provide lock to scheme
10-Feb-20,Housing & Community Services,Cpw Locksmiths And Securi, 113.33 ,HRA Special Repairs & Maintenance,provide lock to scheme
14-Feb-20,Housing & Community Services,Cpw Locksmiths And Securi, 11.67 ,HRA Special Repairs & Maintenance,provide key to scheme
18-Feb-20,Housing & Community Services,Cpw Locksmiths And Securi, 240.00 ,Non Contracted_Professional Services,Gain entry PSH work 4/2/20
25-Feb-20,Housing & Community Services,Currys Online, 160.00 ,Specific Campaigns / Projects expenditure,Purchase of a TV for client from his RRP personal budget
13-Feb-20,Housing & Community Services,Easyhotel Ipswich, 138.60 ,Services for Clients,5x Nights Hotel for client through cold weather fund
18-Feb-20,Housing & Community Services,Easyhotel Ipswich, 246.93 ,Services for Clients,Bed and breakfast hotel booking for homeless person
27-Feb-20,Housing & Community Services,Easyhotel Ipswich, 135.00 ,Services for Clients,B & B for temp
11-Feb-20,Housing & Community Services,Ferret Informatio, 350.00 ,Training Expenses,DFG training course 
04-Feb-20,Housing & Community Services,Gen Register Office, 14.00 ,Specific Campaigns / Projects expenditure,birth certificate for service user
10-Feb-20,Housing & Community Services,Gen Register Office, 14.00 ,Specific Campaigns / Projects expenditure,Birth Cert 
18-Feb-20,Housing & Community Services,Gen Register Office, 11.00 ,Specific Campaigns / Projects expenditure,Birth certificate for homeless person
21-Feb-20,Housing & Community Services,Graham, 10.58 ,Materials and Supplies - Miscellaneous, Running Adapter 3710135
21-Feb-20,Housing & Community Services,Graham, 16.99 ,Materials and Supplies - Miscellaneous,Vent Pipe  3719956
07-Feb-20,Housing & Community Services,Greater Anglia T/o, 99.60 ,Employee Expenses,Train ticket to London
28-Feb-20,Housing & Community Services,Greater Anglia T/o, 99.60 ,Training Expenses,Train ticket for TS Apprentice
20-Feb-20,Housing & Community Services,Greater Anglia Trains,-83.00 ,Use Of Public Transport,Refund for train ticket that wasn't used
27-Feb-20,Housing & Community Services,Greater Anglia Trains, 74.50 ,Use Of Public Transport,Rail travel  to attend training -17/3/20
30-Jan-20,Housing & Community Services,Greggs, 20.00 ,Specific Campaigns / Projects expenditure, coffee
31-Jan-20,Housing & Community Services,Greggs, 20.00 ,Specific Campaigns / Projects expenditure,Coffee
29-Jan-20,Housing & Community Services,Hanscan Ltd, 90.00 ,Capital Expenditure,Wire Mesh
10-Feb-20,Housing & Community Services,J2 Efax Plus Service, 11.00 ,Miscellaneous Expenses,Monthly fee for secure fax system for food parcels
06-Feb-20,Housing & Community Services,Liquidline Vt, 166.57 ,Materials and Supplies - Miscellaneous,Coffee and Sugar
04-Feb-20,Housing & Community Services,Manomano, 84.98 ,Equipment / Furniture / Materials,Plasterboard props 
30-Jan-20,Housing & Community Services,Mlm Building Control Ltd, 90.00 ,Capital Expenditure,Bat removal at Holbrook Road for Bay Cladding Project
11-Feb-20,Housing & Community Services,Norwich City Counc, 175.00 ,Training Expenses,Training course 
11-Feb-20,Housing & Community Services,Norwich City Counc, 175.00 ,Training Expenses,Training course
06-Jan-20,Housing & Community Services,Parcel2go.Com Ltd, 7.86 ,Equipment - Repairs,BWVC sent off for repair
17-Feb-20,Housing & Community Services,Paul Wright & Company, 80.77 ,Services for Clients,Holding Fee
17-Feb-20,Housing & Community Services,Paul Wright & Company,-80.77 ,Services for Clients,Refunded holding fee
21-Feb-20,Housing & Community Services,Paul Wright & Company, 80.77 ,Services for Clients,Holding Fee
21-Feb-20,Housing & Community Services,Rs Components, 119.98 ,Equipment / Furniture / Materials,Temperature measurer 
19-Feb-20,Housing & Community Services,Sainsburys S/mkt, 4.32 ,Housing  - other Costs,Get Together refreshments
27-Jan-20,Housing & Community Services,Sainsburys S/mkts, 0.80 ,Materials and Supplies - Miscellaneous,milk for staff
04-Feb-20,Housing & Community Services,Sainsburys S/mkts, 4.00 ,Materials and Supplies - Miscellaneous,Coffee for staff
05-Feb-20,Housing & Community Services,Sainsburys S/mkts, 10.00 ,Materials and Supplies - Miscellaneous,De-caff coffee/sweetner
12-Feb-20,Housing & Community Services,Sainsburys S/mkts, 4.80 ,Materials and Supplies - Miscellaneous,Milk and coffee for staff
17-Feb-20,Housing & Community Services,Sainsburys S/mkts, 0.80 ,Materials and Supplies - Miscellaneous,milk for staff
19-Feb-20,Housing & Community Services,Sainsburys S/mkts, 5.00 ,Materials and Supplies - Miscellaneous,De-caff coffee
14-Feb-20,Housing & Community Services,Screwfix Direct, 33.32 ,Equipment / Furniture / Materials,2x ratchet straps 
20-Feb-20,Housing & Community Services,Sp * Hairy Worm, 18.12 ,Materials and Supplies - Miscellaneous,door Draught seal 3679632
20-Feb-20,Housing & Community Services,Timpson Group Plc, 24.00 ,Committee Groups and Forum costs,Commemoration plaque 
19-Feb-20,Housing & Community Services,Toolstation Ltd,-29.15 ,Clothing / Uniform & Laundry,Refund Trousers
17-Feb-20,Housing & Community Services,Trainline, 15.81 ,Specific Campaigns / Projects expenditure,Return train ticket to Diss for Homelessness event
05-Feb-20,Housing & Community Services,Trainline, 109.33 ,Training Expenses,HQN Training for Tenant Engagement
10-Feb-20,Housing & Community Services,Trainline, 134.00 ,Training Expenses,Train tickets to London for DFG course
14-Feb-20,Housing & Community Services,Trainline, 105.36 ,Training Expenses,Train ticket 
27-Feb-20,Housing & Community Services,Trainline, 118.28 ,Use Of Public Transport,Train tickets for BSU Tech
17-Feb-20,Housing & Community Services,Waitrose Ltd, 0.96 ,Materials and Supplies - Miscellaneous,Milk
12-Feb-20,Housing & Community Services,Wilko Retail Limited, 2.50 ,Stationery,Laminator pouches for displays
03-Feb-20,Housing & Community Services,Www.Banneruk.Com, 110.21 ,Stationery,Stationery
18-Feb-20,Housing & Community Services,Www.Banneruk.Com, 14.93 ,Stationery,Stationery
18-Feb-20,Housing & Community Services,Www.Banneruk.Com, 38.00 ,Stationery,Stationery
25-Feb-20,Housing & Community Services,Www.Banneruk.Com, 34.51 ,Stationery,Presentation Folders
11-Feb-20,Housing & Community Services,Www.Toolstation.Com,-16.65 ,Clothing / Uniform & Laundry,Trouser Refund
11-Feb-20,Housing & Community Services,Www.Toolstation.Com, 45.80 ,Clothing / Uniform & Laundry,Trousers 
05-Feb-20,Housing & Community Services,Www.Toolstation.Com, 9.99 ,Equipment / Furniture / Materials,Plastering Trowel
17-Feb-20,Housing & Community Services,Www.Toolstation.Com, 8.63 ,Equipment / Furniture / Materials,"Coping Saw, Blades & Screwdriver"
06-Feb-20,Housing & Community Services,Www.Westminster-Briefi, 410.00 ,Training Expenses,CCTV seminar
24-Jan-20,People & Governance,Adobe Creative Cloud, 313.38 ,Computer Software - Maintenance,Adobe incorrectly charged us for an additional CC Licence
30-Jan-20,People & Governance,Adobe Creative Cloud,-708.00 ,Computer Software - Maintenance,Credit for incorrectly charged additional CC licence
12-Feb-20,People & Governance,Amazon.Co.Uk, 9.57 ,Miscellaneous Stock  - Purchases,C6 White Non Window Envelopes for print room
13-Feb-20,People & Governance,Amznmktplace, 8.61 ,Advertising/Publicity,Stationery for MiS activities
05-Feb-20,People & Governance,Amznmktplace, 12.58 ,Equipment / Furniture / Materials,UV lights for ID verification
13-Feb-20,People & Governance,Amznmktplace Amazon.Co.Uk, 85.72 ,Miscellaneous Stock  - Purchases,Poster boards for the large format printer
13-Feb-20,People & Governance,Amznmktplace Amazon.Co.Uk, 10.73 ,Miscellaneous Stock  - Purchases,Spray Mount for the Print Room use
07-Feb-20,People & Governance,Argos Ipswich Carr Street, 203.00 ,Specific Campaigns / Projects expenditure,REDACTED INFORMATION
21-Jan-20,People & Governance,Arts Marketing Ass, 55.00 ,Training Expenses,Facebook Sales Funnel Training
28-Feb-20,People & Governance,Debenhams, 395.00 ,Specific Campaigns / Projects expenditure,REDACTED INFORMATION
10-Feb-20,People & Governance,Dunelm Ltd, 25.00 ,Miscellaneous Functions & Events,Black table cloths for OLB
04-Feb-20,People & Governance,Helloprint B.V., 25.80 ,Advertising/Publicity,Unmasked Pull Up Banner
30-Jan-20,People & Governance,Lakeland Limited, 8.33 ,Mayoral Related Expenditure,silver cleaning gloves for parlour
27-Jan-20,People & Governance,Mailchimp, 256.59 ,Subscriptions - Service Related,MailChimp email marketing
13-Feb-20,People & Governance,Mailchimp, 481.21 ,Subscriptions - Service Related,MailChimp email marketing
27-Jan-20,People & Governance,Makro Self Service Ipswic, 131.33 ,Miscellaneous Functions & Events,Wine/ napkins/ banquet roll for Burnsnight and future events
20-Feb-20,People & Governance,Marks&spencer Plc, 24.42 ,Miscellaneous Functions & Events,sandwiches/cake Dean of Ely event
19-Feb-20,People & Governance,Marks&spencer Plc Saca, 19.45 ,Miscellaneous Functions & Events,cake/milk Belle vue event.
05-Feb-20,People & Governance,Paypal, 416.67 ,Equipment / Furniture / Materials,Made in Suffolk Shipping Credit
20-Feb-20,People & Governance,Poundland Ltd 1719, 3.33 ,Advertising/Publicity,Stationery for MiS activities
14-Feb-20,People & Governance,Priory Direct, 184.20 ,Printing Costs,Integrated Card Stationery 
22-Jan-20,People & Governance,Sainsburys S/mkt, 139.58 ,Miscellaneous Functions & Events,Candles/whiskey/wine for Burns night event
27-Jan-20,People & Governance,Sainsburys S/mkt, 3.95 ,Miscellaneous Functions & Events,orange Juice for Burns night
27-Jan-20,People & Governance,Sainsburys S/mkt, 12.75 ,Miscellaneous Functions & Events,Wine for Burns night.
13-Jan-20,People & Governance,Sainsburys S/mkts, 4.55 ,Miscellaneous Functions & Events,juice for Trianon event.
19-Feb-20,People & Governance,Shell Ranelagh 390, 39.97 ,Direct Transport Costs,fuel
22-Jan-20,People & Governance,Shopify* 74401481, 22.98 ,Financial Fees & Services,Made in Suffolk online shop
13-Jan-20,People & Governance,Spring Road, 41.99 ,Direct Transport Costs,fuel
17-Feb-20,People & Governance,"Sprout Social, Inc", 752.31 ,Subscriptions - Service Related,Social media management
05-Feb-20,People & Governance,Tesco Store 2748, 20.00 ,Computer Consumables and other Minor IT costs,Ink Cartridges for Stage (Mansion) to be recharged on
27-Jan-20,People & Governance,Waitrose Ltd, 5.70 ,Miscellaneous Functions & Events,squash/biscuits for Thurston rainbows
06-Feb-20,People & Governance,Waitrose Ltd, 3.25 ,Miscellaneous Functions & Events,ground coffee
19-Feb-20,People & Governance,Waitrose Ltd, 2.10 ,Miscellaneous Functions & Events,biscuits for interfaith meeting
19-Feb-20,People & Governance,Waitrose Ltd, 4.65 ,Miscellaneous Functions & Events,cake for Belle vue visit
18-Feb-20,People & Governance,Wilko Retail Limited, 3.33 ,Advertising/Publicity,Stationery for MiS activities
10-Jan-20,People & Governance,Wilko Retail Limited, 11.33 ,Miscellaneous Functions & Events,hand soap and airer for parlour
17-Jan-20,People & Governance,Wilko Retail Limited, 41.67 ,Miscellaneous Functions & Events,vacuum cleaner for the civic car
17-Feb-20,People & Governance,Wilko Retail Limited, 19.17 ,Miscellaneous Functions & Events,Remote door bell for the parlour.
28-Feb-20,People & Governance,Www.Accounts@iia.Org.U, 250.00 ,Non Contracted_Professional Services,IIA membership fee
17-Feb-20,People & Governance,Www.Banneruk.Com, 136.64 ,Miscellaneous Stock  - Purchases,Envelopes for the print room use (ready for large mailing)
31-Jan-20,People & Governance,Www.Neopost.Co.Uk, 226.42 ,Miscellaneous Stock  - Purchases,Sealing Fluid in November and January for Folder Inserter
28-Jan-20,People & Governance,Www.Paper.Co.Uk, 31.27 ,Miscellaneous Stock  - Purchases,Coloured paper for print room use
28-Jan-20,People & Governance,Www.Paper.Co.Uk, 238.17 ,Miscellaneous Stock  - Purchases,Large Format Photo Paper 4 rolls
